bitfinex/quotes_BTCUSD_20260126
["timestamp","ask_amount","ask_price","bid_price","bid_amount"]
[1769390944691,1.05129117,87605.0,87592.0,0.17536]
[1769390944892,1.05129117,87605.0,87592.0,0.17636]
[1769390945945,1.05129117,87605.0,87593.0,0.14150364]
[1769390946626,0.0001403,87613.0,87594.0,0.0114163]
[1769390946907,0.11370431,87612.0,87597.0,0.14150364]
[1769390947109,0.11370431,87611.0,87598.0,0.16097408]
[1769390947340,0.11370431,87610.0,87598.0,0.16097408]
[1769390947502,0.11370431,87609.0,87598.0,0.16097408]
[1769390947703,0.11370431,87608.0,87598.0,0.16097408]
[1769390947903,0.11370431,87607.0,87598.0,0.16097408]
[1769390948109,1.05129117,87611.0,87598.0,0.16097408]
[1769390948428,0.1137477,87610.0,87598.0,0.16097408]
[1769390948634,0.1137477,87609.0,87598.0,0.16097408]
[1769390948911,1.05129117,87607.0,87598.0,0.16097408]
[1769390949124,0.1137477,87606.0,87591.0,0.14150364]
[1769390949327,1.05129117,87605.0,87591.0,0.14150364]
[1769390949535,0.1137477,87604.0,87591.0,0.14150364]
[1769390950396,0.1137477,87604.0,87591.0,0.15292033]
[1769390950567,0.1137477,87604.0,87592.0,0.17636]
[1769390950723,0.1137477,87604.0,87592.0,0.18777656]
[1769390950925,0.1137477,87604.0,87595.0,0.01141617]
[1769390951132,0.1137477,87604.0,87595.0,0.14150364]
[1769390951658,0.09125154,87609.0,87595.0,0.14150364]
[1769390951659,0.1137477,87603.0,87595.0,0.14150364]
[1769390951855,0.1137477,87602.0,87595.0,0.14150364]
[1769390952038,0.1137477,87601.0,87595.0,0.15291981]
[1769390952237,0.1137477,87600.0,87595.0,0.01141617]
[1769390952443,1.14254271,87609.0,87596.0,0.14150364]
[1769390952645,0.11391295,87608.0,87596.0,0.14150364]
[1769390952848,0.11391295,87607.0,87596.0,0.15291968]
[1769390953034,0.11391295,87606.0,87596.0,0.14150364]
[1769390953231,0.11391295,87605.0,87596.0,0.15291968]
[1769390953442,0.11391295,87604.0,87596.0,0.14150364]
[1769390953666,1.14254271,87609.0,87596.0,0.14150364]
[1769390953667,0.11391295,87603.0,87596.0,0.14150364]
[1769390953862,0.11391295,87602.0,87596.0,0.15291968]
[1769390954076,0.11391295,87601.0,87596.0,0.14150364]
[1769390954301,1.14254271,87609.0,87596.0,0.14150364]
[1769390954302,0.11391295,87600.0,87596.0,0.14150364]
[1769390954501,1.14254271,87609.0,87596.0,0.14150364]
[1769390954502,9.78e-05,87601.0,87596.0,0.14150364]
[1769390954765,0.11393428,87600.0,87597.0,1.05667692]
[1769390954965,9.78e-05,87601.0,87596.0,0.15291968]
[1769390955394,9.78e-05,87601.0,87599.0,0.14150364]
[1769390955510,9.78e-05,87601.0,87598.0,0.01141578]
[1769390955511,1.05129117,87612.0,87603.0,0.01141513]
[1769390955715,0.0001403,87613.0,87602.0,0.1529189]
[1769390955928,0.0001403,87613.0,87603.0,0.16295248]
[1769390958012,0.0001403,87613.0,87603.0,0.14150364]
[1769390960031,0.0001403,87613.0,87603.0,0.16301375]
[1769390960804,0.0001403,87613.0,87603.0,0.14150364]
[1769390961228,0.0001403,87613.0,87603.0,0.15291877]
[1769390961429,0.0001403,87613.0,87603.0,0.17442838]
[1769390961608,0.0001403,87613.0,87603.0,0.16301325]
[1769390962032,0.0001403,87613.0,87603.0,0.14150364]
[1769390962254,1.12823393,87612.0,87596.0,0.13054736]
[1769390963031,1.12823393,87612.0,87596.0,0.19292711]
[1769390963590,1.21755961,87612.0,87597.0,0.02041857]
[1769390963795,1.21755961,87612.0,87596.0,0.19292711]
[1769390964197,1.21755961,87612.0,87597.0,0.02041813]
[1769390965967,1.12823393,87612.0,87597.0,0.02041813]
[1769390967584,1.12823393,87612.0,87596.0,0.19292711]
[1769390967585,1.2370656,87611.0,87596.0,0.06237975]
[1769390967759,1.22565151,87611.0,87596.0,0.06237975]
[1769390967915,1.22565151,87611.0,87593.0,0.13054736]
[1769390968347,1.13964828,87609.0,87592.0,0.23667938]
[1769390968647,0.09718875,87604.0,87592.0,0.23667938]
[1769390968848,1.12823393,87603.0,87592.0,0.23667938]
[1769390971554,0.09718875,87604.0,87592.0,0.23667938]
[1769390971727,1.12823393,87603.0,87592.0,0.24809594]
[1769390972224,0.0001403,87613.0,87594.0,0.0114163]
[1769390972368,1.12823393,87612.0,87593.0,0.01141643]
[1769390972579,1.22899662,87612.0,87592.0,0.3786433]
[1769390972778,1.22899662,87612.0,87592.0,0.36692674]
[1769390973057,1.12823393,87612.0,87593.0,0.01141643]
[1769390973264,1.16574404,87610.0,87593.0,0.01141643]
[1769390973651,1.16574404,87610.0,87592.0,0.36692674]
[1769390974072,0.0001403,87613.0,87592.0,1.32035234]
[1769390974406,0.0001403,87613.0,87596.0,0.13526579]
[1769390974592,0.0001403,87613.0,87597.0,0.13526579]
[1769390974795,0.0001403,87613.0,87598.0,0.01141578]
[1769390974969,0.0001403,87613.0,87599.0,0.13526579]
[1769390975174,1.16574404,87612.0,87599.0,0.13526579]
[1769390975378,1.16574404,87612.0,87600.0,0.02047589]
[1769390975781,1.16574404,87612.0,87600.0,0.03189141]
[1769390976010,0.0001403,87613.0,87601.0,0.13526579]
[1769390976508,0.0001403,87613.0,87603.0,0.13526579]
[1769390977694,1.16574404,87612.0,87597.0,0.01141591]
[1769390977859,1.16574404,87612.0,87598.0,0.13526579]
[1769390978244,0.01,87598.0,87591.0,0.13526579]
[1769390978448,1.16574404,87605.0,87591.0,0.13526579]
[1769390978819,1.16574404,87605.0,87592.0,0.37164517]
[1769390979023,1.16574404,87609.0,87593.0,0.13526579]
[1769390979232,1.16574404,87609.0,87594.0,0.13526579]
[1769390979479,1.16574404,87609.0,87594.0,0.14668209]
[1769390979678,1.16574404,87609.0,87594.0,0.13526579]
[1769390980977,0.341568,87610.0,87594.0,0.13526579]
[1769390981150,1.16574404,87609.0,87594.0,0.13526579]
[1769390981778,1.16574404,87609.0,87594.0,0.14668209]
[1769390981975,1.16574404,87609.0,87594.0,0.13526579]
[1769390983594,0.341568,87604.0,87594.0,0.13526579]
[1769390983802,0.341568,87604.0,87575.0,0.31421158]
[1769390983803,1.16574404,87597.0,87573.0,0.13526579]
[1769390984002,1.16574404,87588.0,87574.0,0.13526579]
[1769390985410,1.16574404,87588.0,87578.0,0.01141839]
[1769390985659,0.01141422,87610.0,87579.0,0.01141826]
[1769390985859,0.01141422,87610.0,87545.0,0.1482]
[1769390985860,1.16574404,87612.0,87597.0,0.13526579]
[1769390986051,0.341568,87620.0,87597.0,0.13526579]
[1769390986052,1.16574404,87609.0,87597.0,0.13526579]
[1769390987660,1.16574404,87609.0,87596.0,0.01141604]
[1769390987813,1.16574404,87609.0,87595.0,0.13526579]
[1769390988463,1.16574404,87609.0,87595.0,0.14668196]
[1769390988874,0.99989616,87609.0,87595.0,0.13526579]
[1769390989481,0.99989616,87609.0,87590.0,0.01141682]
[1769390989679,0.0001403,87613.0,87590.0,0.01141682]
[1769390989680,0.11056646,87608.0,87590.0,0.01141682]
[1769390989997,1.20584136,87607.0,87589.0,0.17532]
[1769390990198,1.0952749,87605.0,87589.0,0.18673695]
[1769390990605,1.0952749,87605.0,87589.0,0.17532]
[1769390991022,0.1144588,87606.0,87589.0,0.17532]
[1769390991222,1.0952749,87603.0,87589.0,0.17532]
[1769390991638,0.01141526,87602.0,87589.0,0.17532]
[1769390991845,1.0952749,87602.0,87589.0,0.17632]
[1769390992095,1.22538901,87602.0,87589.0,0.17632]
[1769390992292,1.21397375,87602.0,87589.0,0.17532]
[1769390992521,1.22538901,87602.0,87589.0,0.17632]
[1769390992738,1.21397375,87602.0,87589.0,0.17632]
[1769390993247,0.17536,87606.0,87602.0,0.01]
[1769390993659,1.0952749,87612.0,87602.0,0.01]
[1769390993862,1.0952749,87612.0,87597.0,0.13526579]
[1769390994039,1.10668886,87612.0,87597.0,0.13526579]
[1769390994235,0.01141409,87611.0,87597.0,0.13526579]
[1769390994468,1.0952749,87610.0,87597.0,0.13526579]
[1769390994886,1.0952749,87610.0,87593.0,0.02283287]
[1769390995089,1.0952749,87610.0,87594.0,0.02283261]
[1769390995299,1.0952749,87610.0,87592.0,0.02283313]
[1769390995702,1.0952749,87610.0,87593.0,0.13526579]
[1769390995977,1.0952749,87610.0,87591.0,1.10680609]
[1769390995978,0.8695235,87610.0,87594.0,0.15809813]
[1769390997274,0.0001403,87613.0,87597.0,0.05707896]
[1769390997472,0.0001403,87613.0,87611.0,0.13526579]
[1769390997674,1.16067035,87629.0,87611.0,0.13526579]
[1769390998026,0.13669311,87632.0,87619.0,0.14667883]
[1769390998027,0.0004,87632.0,87619.0,0.14667883]
[1769390998245,0.0004,87632.0,87623.0,0.13526579]
[1769390998842,0.0004,87632.0,87626.0,0.14667792]
[1769390999042,0.0003462,87635.0,87622.0,1.15244883]
[1769390999043,0.0003462,87635.0,87633.0,1.08397296]
[1769390999239,0.0003462,87635.0,87634.0,0.13526579]
[1769391000074,0.0003462,87635.0,87624.0,0.01141239]
[1769391000283,0.0003462,87635.0,87626.0,0.13526579]
[1769391001496,1.16283435,87634.0,87612.0,0.01141396]
[1769391001711,0.0003462,87635.0,87620.0,1.08397296]
[1769391001893,0.0003462,87635.0,87625.0,0.13526579]
[1769391002093,0.0003462,87635.0,87619.0,0.01155334]
[1769391002094,0.0003462,87635.0,87628.0,0.13526579]
[1769391002449,0.0003462,87635.0,87630.0,0.01141161]
[1769391002639,0.0003462,87635.0,87633.0,0.13526579]
[1769391002846,0.0003462,87635.0,87633.0,0.13512634]
[1769391003059,0.0002,87639.0,87633.0,0.13512634]
[1769391003967,0.01140823,87656.0,87633.0,0.13512634]
[1769391004193,1.12210293,87655.0,87635.0,0.13545818]
[1769391004320,0.01140849,87654.0,87635.0,0.13545818]
[1769391004633,1.12210293,87655.0,87635.0,0.13545818]
[1769391004634,0.0003462,87655.0,87643.0,0.13545818]
[1769391005378,0.0003462,87655.0,87643.0,0.1468681]
[1769391005521,0.0003462,87655.0,87643.0,0.13545818]
[1769391006112,1.11034837,87654.0,87634.0,0.14686927]
[1769391006315,0.01140953,87646.0,87628.0,0.13545818]
[1769391006525,0.01140953,87646.0,87619.0,0.13559848]
[1769391006526,0.13967364,87637.0,87619.0,0.13559848]
[1769391006737,1.11034837,87634.0,87619.0,0.13559848]
[1769391007385,0.13967364,87633.0,87619.0,0.0001403]
[1769391007595,0.01141057,87638.0,87619.0,0.0001403]
[1769391007596,1.25002201,87632.0,87619.0,0.0001403]
[1769391007747,1.11034837,87630.0,87619.0,0.0001403]
[1769391007953,0.13967364,87629.0,87619.0,0.0001403]
[1769391008160,1.11034837,87626.0,87609.0,0.00801814]
[1769391008356,1.11048867,87626.0,87609.0,0.00801814]
[1769391008607,1.11034837,87623.0,87611.0,0.01141409]
[1769391008813,1.25002201,87623.0,87617.0,0.01141331]
[1769391009019,1.25002201,87623.0,87614.0,0.0114137]
[1769391009231,0.0001403,87626.0,87613.0,0.01141383]
[1769391009437,0.0001403,87626.0,87611.0,0.0194322]
[1769391009650,0.0001403,87626.0,87612.0,0.13545818]
[1769391010051,0.0001403,87626.0,87613.0,0.01141383]
[1769391010408,0.0001403,87626.0,87617.0,0.001]
[1769391010825,0.0001403,87626.0,87612.0,0.13545818]
[1769391011024,0.0001403,87626.0,87612.0,0.14687214]
[1769391011241,0.0001403,87626.0,87612.0,0.13645818]
[1769391011440,0.0001403,87626.0,87612.0,0.001]
[1769391011902,1.10664414,87626.0,87612.0,0.001]
[1769391012106,1.10664414,87626.0,87612.0,0.01241396]
[1769391012343,1.10664414,87626.0,87612.0,0.01141396]
[1769391012546,1.10664414,87626.0,87614.0,0.0114137]
[1769391012688,1.10664414,87626.0,87612.0,0.01241396]
[1769391013072,1.10664414,87626.0,87612.0,0.001]
[1769391013327,1.11805627,87626.0,87612.0,0.001]
[1769391013527,0.01141291,87620.0,87612.0,0.00794091]
[1769391013756,1.23831598,87616.0,87596.0,0.1115615]
[1769391013964,1.09864234,87614.0,87597.0,0.00114159]
[1769391014172,1.09864234,87610.0,87597.0,0.00114159]
[1769391014382,1.23831598,87610.0,87597.0,0.00114159]
[1769391015257,1.23831598,87610.0,87596.0,0.1115615]
[1769391015258,1.23831598,87610.0,87596.0,0.12297754]
[1769391015459,1.23831598,87610.0,87598.0,0.01141578]
[1769391015658,0.13967364,87622.0,87599.0,0.01141565]
[1769391015873,1.09864234,87619.0,87600.0,0.02511399]
[1769391016014,0.13967364,87616.0,87600.0,0.02511399]
[1769391016192,1.09864234,87615.0,87600.0,0.02511399]
[1769391016600,1.09864234,87615.0,87600.0,0.01369847]
[1769391017018,1.09864234,87615.0,87600.0,0.01141552]
[1769391017254,1.09864234,87615.0,87600.0,0.001]
[1769391017553,1.09864234,87615.0,87600.0,0.01241552]
[1769391018004,1.09864234,87615.0,87600.0,0.001]
[1769391018574,1.09864234,87615.0,87601.0,0.01141539]
[1769391019167,1.09864234,87615.0,87600.0,0.01241552]
[1769391019316,1.09864234,87615.0,87599.0,0.02511412]
[1769391019520,1.09864234,87615.0,87599.0,0.14889747]
[1769391019750,1.09864234,87615.0,87601.0,0.001]
[1769391019996,1.09864234,87615.0,87601.0,0.01241539]
[1769391020130,1.09864234,87615.0,87601.0,0.01141539]
[1769391020522,0.0001403,87626.0,87609.0,0.01141435]
[1769391020687,0.0001403,87626.0,87623.0,0.01141252]
[1769391020886,0.04564,87655.0,87626.0,1.06121309]
[1769391020887,1.1283487,87646.0,87626.0,1.06121309]
[1769391021059,1.1283487,87646.0,87627.0,0.135199]
[1769391021263,0.01140979,87644.0,87627.0,0.135199]
[1769391021465,1.1284721,87639.0,87618.0,0.135199]
[1769391021627,1.1283487,87637.0,87618.0,0.1353393]
[1769391021832,1.13628972,87636.0,87618.0,0.1353393]
[1769391022041,1.1283487,87636.0,87618.0,0.1353393]
[1769391022279,0.00794102,87635.0,87618.0,0.1353393]
[1769391022593,0.00794102,87635.0,87620.0,0.135199]
[1769391022949,0.96447928,87636.0,87620.0,0.135199]
[1769391023298,0.97589011,87636.0,87620.0,0.135199]
[1769391024081,0.97589011,87636.0,87620.0,0.00802687]
[1769391024082,1.1283487,87630.0,87620.0,0.00802687]
[1769391024446,1.12388046,87628.0,87618.0,0.0001403]
[1769391025202,1.12388046,87628.0,87618.0,0.02072185]
[1769391025401,1.12388046,87628.0,87619.0,0.02058128]
[1769391025742,1.12388046,87628.0,87620.0,0.02058103]
[1769391025952,1.12388046,87628.0,87618.0,0.0001403]
[1769391028987,0.13230781,87627.0,87618.0,0.0001403]
[1769391029192,0.01692918,87626.0,87607.0,0.135199]
[1769391029397,1.05383875,87625.0,87607.0,0.135199]
[1769391029590,1.05383875,87623.0,87607.0,0.135199]
[1769391031852,1.06525127,87623.0,87607.0,0.135199]
[1769391032022,1.05383875,87621.0,87601.0,0.17532]
[1769391032233,1.05383875,87617.0,87601.0,0.17532]
[1769391033425,0.0054788,87618.0,87601.0,0.17532]
[1769391033627,1.05884903,87617.0,87601.0,0.17532]
[1769391034649,1.05884903,87617.0,87603.0,0.01141513]
[1769391034784,1.05884903,87617.0,87605.0,0.01141487]
[1769391034980,1.05383875,87617.0,87605.0,0.01141487]
[1769391035186,1.05383875,87617.0,87606.0,0.01141474]
[1769391035430,1.05383875,87623.0,87609.0,0.01141435]
[1769391035638,1.05383875,87623.0,87609.0,0.13845002]
[1769391036063,0.34147924,87620.0,87609.0,0.13845002]
[1769391036578,0.34147924,87620.0,87610.0,0.02037989]
[1769391038792,0.34147924,87620.0,87611.0,0.01141409]
[1769391038997,0.34147924,87630.0,87621.0,0.13845002]
[1769391039170,0.34147924,87630.0,87612.0,0.07759034]
[1769391039171,0.34147924,87630.0,87611.0,0.01141409]
[1769391039369,0.34147924,87630.0,87612.0,0.02282792]
[1769391039370,1.05395617,87626.0,87612.0,0.02282792]
[1769391039615,1.05395617,87626.0,87613.0,0.01141383]
[1769391039815,1.05395617,87626.0,87614.0,0.0228274]
[1769391040085,0.00011742,87626.0,87615.0,0.13845002]
[1769391040311,0.00011742,87626.0,87616.0,0.16127689]
[1769391040882,0.00011742,87626.0,87616.0,0.16097689]
[1769391041849,1.05383875,87625.0,87616.0,0.02252687]
[1769391042092,1.05383875,87625.0,87612.0,0.02222687]
[1769391042722,1.05383875,87625.0,87614.0,0.0114137]
[1769391042932,0.00011742,87626.0,87615.0,0.16058309]
[1769391043134,0.00011742,87626.0,87616.0,0.01141344]
[1769391043333,0.00011742,87626.0,87616.0,0.13845002]
[1769391043871,0.00011742,87626.0,87615.0,0.03354664]
[1769391043872,0.00011742,87626.0,87617.0,0.01141331]
[1769391044071,0.00011742,87626.0,87618.0,0.14986319]
[1769391044275,0.00011742,87626.0,87619.0,0.13845002]
[1769391045038,0.0001234,87639.0,87631.0,0.13845002]
[1769391045651,0.0001234,87639.0,87624.0,0.0570614]
[1769391045652,1.12741402,87658.0,87637.0,0.14986072]
[1769391045854,1.12739642,87657.0,87638.0,0.13845002]
[1769391046058,1.12709642,87657.0,87638.0,0.13845002]
[1769391046260,0.0003,87656.0,87638.0,1.11757725]
[1769391046450,0.0003,87656.0,87639.0,0.13845002]
[1769391046645,0.34147924,87650.0,87639.0,0.13845002]
[1769391047386,1.13850452,87657.0,87639.0,0.13845002]
[1769391047387,1.12709642,87657.0,87641.0,0.01141018]
[1769391047564,0.0003176,87658.0,87651.0,0.13845002]
[1769391048534,0.0003176,87658.0,87640.0,0.17532]
[1769391048769,1.13221876,87649.0,87640.0,0.17532]
[1769391048975,1.13221876,87649.0,87631.0,0.01141148]
[1769391048976,1.13221876,87649.0,87634.0,0.13845002]
[1769391049178,1.13221876,87647.0,87634.0,0.13845002]
[1769391049611,1.14362842,87645.0,87634.0,0.13845002]
[1769391049825,0.34147924,87650.0,87620.0,0.13620103]
[1769391049826,1.13221876,87641.0,87620.0,0.13620103]
[1769391049996,1.13221876,87638.0,87620.0,0.13620103]
[1769391050323,0.92063321,87636.0,87620.0,0.14761394]
[1769391050518,0.92063321,87636.0,87621.0,0.01141278]
[1769391050722,0.92063321,87636.0,87620.0,0.13620103]
[1769391050927,0.96341268,87630.0,87620.0,0.13620103]
[1769391051120,0.0003,87629.0,87620.0,0.13620103]
[1769391051697,0.0003,87630.0,87620.0,0.13620103]
[1769391053942,0.96341268,87631.0,87620.0,0.13620103]
[1769391054566,0.00878334,87638.0,87620.0,0.13620103]
[1769391054771,0.01141083,87636.0,87620.0,0.13620103]
[1769391054995,0.01141109,87634.0,87620.0,0.13620103]
[1769391055202,0.0003,87633.0,87620.0,0.13620103]
[1769391055404,0.96341268,87634.0,87620.0,0.13620103]
[1769391055607,0.96371268,87633.0,87620.0,0.13620103]
[1769391055812,0.96341268,87633.0,87620.0,0.13620103]
[1769391055979,0.0003,87632.0,87620.0,0.13620103]
[1769391056577,0.96341268,87633.0,87620.0,0.13620103]
[1769391057015,0.96341268,87633.0,87611.0,0.01141409]
[1769391057016,0.01795865,87632.0,87609.0,0.17959171]
[1769391057332,0.0003,87633.0,87618.0,0.14536488]
[1769391057567,0.76995536,87635.0,87618.0,0.13395171]
[1769391057741,0.0003,87634.0,87618.0,0.14536488]
[1769391057976,0.0003,87634.0,87618.0,0.13395171]
[1769391058386,0.0003,87634.0,87620.0,0.13395171]
[1769391060023,0.76995536,87637.0,87620.0,0.13395171]
[1769391060235,0.0003,87636.0,87621.0,0.13395171]
[1769391060445,0.42669658,87631.0,87621.0,0.00767623]
[1769391060673,0.76995536,87630.0,87614.0,0.13395171]
[1769391060879,0.0175443,87628.0,87601.0,0.01141539]
[1769391061086,0.76995536,87622.0,87604.0,0.011415]
[1769391061298,0.76995536,87622.0,87608.0,0.13395171]
[1769391061515,0.76995536,87622.0,87602.0,1.11757725]
[1769391061516,0.76995536,87637.0,87616.0,0.01141344]
[1769391061735,0.76995536,87635.0,87617.0,0.15550727]
[1769391061954,0.76995536,87633.0,87617.0,0.15550727]
[1769391062165,0.77025536,87632.0,87617.0,0.15550727]
[1769391062444,0.76995536,87632.0,87617.0,0.15550727]
[1769391062608,0.17528,87636.0,87617.0,0.15550727]
[1769391062609,0.0003,87631.0,87619.0,0.13395171]
[1769391062822,0.76995536,87633.0,87619.0,0.13395171]
[1769391063030,0.77025536,87632.0,87619.0,0.13395171]
[1769391063227,0.76995536,87632.0,87619.0,0.13395171]
[1769391063433,0.77025536,87631.0,87619.0,0.13395171]
[1769391063766,0.76995536,87631.0,87619.0,0.13395171]
[1769391063972,0.0003,87630.0,87619.0,0.13395171]
[1769391064825,0.77025536,87630.0,87612.0,0.138051]
[1769391065035,0.17528,87636.0,87614.0,0.0114137]
[1769391065248,0.0003,87635.0,87616.0,0.14946444]
[1769391065439,0.00014033,87641.0,87616.0,0.14946444]
[1769391065440,0.94537569,87641.0,87621.0,0.138051]
[1769391065645,0.77025536,87640.0,87621.0,0.14946378]
[1769391065827,0.00014033,87641.0,87629.0,0.138051]
[1769391066041,0.00014033,87641.0,87638.0,0.138051]
[1769391066244,0.77028428,87653.0,87644.0,0.00985967]
[1769391066450,0.77028428,87653.0,87638.0,0.138051]
[1769391066882,0.0003,87652.0,87638.0,0.138051]
[1769391067086,0.77028428,87649.0,87630.0,0.138051]
[1769391067290,0.01170927,87648.0,87630.0,0.13819133]
[1769391067599,0.77028428,87647.0,87630.0,0.13819133]
[1769391067796,0.77058428,87646.0,87630.0,0.13819133]
[1769391068039,0.77028428,87646.0,87630.0,0.13819133]
[1769391068264,0.0003,87645.0,87630.0,0.13819133]
[1769391068829,0.77028428,87645.0,87630.0,0.13819133]
[1769391069028,0.76553231,87645.0,87630.0,0.13819133]
[1769391070015,0.76553231,87645.0,87630.0,0.14960294]
[1769391070212,0.02148381,87652.0,87630.0,0.00014033]
[1769391070441,0.76557983,87651.0,87634.0,0.01141109]
[1769391070840,0.76557983,87657.0,87637.0,0.06846404]
[1769391071040,0.76557983,87657.0,87637.0,0.1494617]
[1769391071330,0.76557983,87655.0,87637.0,0.138051]
[1769391071561,0.79117212,87655.0,87637.0,0.1494617]
[1769391071763,0.0003176,87658.0,87641.0,0.138051]
[1769391071970,0.0003176,87658.0,87650.0,0.138051]
[1769391072394,0.0003176,87658.0,87651.0,0.138051]
[1769391072588,0.0003176,87658.0,87652.0,0.01140875]
[1769391072731,0.0003176,87658.0,87650.0,1.08352174]
[1769391072732,0.0003176,87658.0,87653.0,0.138051]
[1769391072939,0.0003176,87658.0,87654.0,0.138051]
[1769391073133,0.0003176,87658.0,87655.0,0.138051]
[1769391073341,0.0003176,87658.0,87647.0,1.07211273]
[1769391073542,0.0003176,87658.0,87648.0,0.138051]
[1769391073758,0.0003176,87658.0,87643.0,0.01140992]
[1769391073759,0.03672658,87690.0,87667.0,1.07211273]
[1769391073965,1.1596633,87685.0,87666.0,0.138051]
[1769391074348,1.1596633,87685.0,87659.0,0.17528]
[1769391074349,1.15285953,87683.0,87668.0,0.138051]
[1769391074566,0.42669658,87680.0,87662.0,0.14945845]
[1769391074782,0.42669658,87680.0,87662.0,0.138051]
[1769391074783,1.15285953,87679.0,87662.0,0.138051]
[1769391074995,1.15332757,87679.0,87664.0,0.01140719]
[1769391075206,0.00046804,87679.0,87666.0,0.138051]
[1769391075419,0.00046804,87679.0,87669.0,0.138051]
[1769391075626,0.00084704,87679.0,87671.0,0.138051]
[1769391075803,0.00084704,87679.0,87672.0,0.138051]
[1769391076040,0.00084704,87679.0,87666.0,1.20522337]
[1769391076245,1.08351845,87678.0,87666.0,0.13311064]
[1769391076670,0.00084704,87679.0,87666.0,0.13311064]
[1769391077092,0.00084704,87679.0,87669.0,0.13311064]
[1769391077309,0.00084704,87679.0,87671.0,1.16115835]
[1769391077507,0.01180406,87688.0,87671.0,1.16115835]
[1769391077508,0.0004,87688.0,87680.0,0.13311064]
[1769391077709,0.00054029,87688.0,87680.0,0.13311064]
[1769391078736,0.00054029,87688.0,87680.0,1.16115835]
[1769391078941,1.08351845,87701.0,87679.0,0.01140523]
[1769391078942,1.06955874,87701.0,87683.0,0.13311064]
[1769391079503,0.03613083,87701.0,87683.0,0.13311064]
[1769391079708,1.06456581,87698.0,87683.0,0.13311064]
[1769391080454,1.07596779,87704.0,87684.0,1.16115835]
[1769391080658,1.07608511,87704.0,87685.0,0.13311064]
[1769391080912,0.00011732,87704.0,87687.0,0.13311064]
[1769391081120,1.06456581,87703.0,87689.0,0.13311064]
[1769391081610,1.07596792,87703.0,87689.0,0.13311064]
[1769391081987,1.06456581,87703.0,87689.0,0.13311064]
[1769391082496,1.06456581,87701.0,87689.0,0.13311064]
[1769391083418,1.06456581,87701.0,87678.0,0.05702679]
[1769391083419,0.01140471,87683.0,87655.0,0.13311064]
[1769391083599,0.03347526,87677.0,87655.0,0.14591164]
[1769391083832,0.74184522,87675.0,87655.0,0.13311064]
[1769391084037,0.01140654,87669.0,87655.0,0.13311064]
[1769391084243,0.72774522,87667.0,87648.0,0.13311064]
[1769391084453,0.03340419,87668.0,87648.0,0.13311064]
[1769391084662,0.03340419,87673.0,87652.0,0.13311064]
[1769391084868,0.00011726,87668.0,87654.0,0.13311064]
[1769391085076,0.00011726,87668.0,87656.0,0.13311064]
[1769391085492,0.00011726,87668.0,87658.0,0.13311064]
[1769391085697,0.00011726,87668.0,87658.0,0.14451861]
[1769391085919,0.18660458,87684.0,87662.0,0.13311064]
[1769391086120,0.18660458,87684.0,87662.0,0.13357868]
[1769391086121,0.01140523,87679.0,87662.0,0.13357868]
[1769391086327,0.01140536,87678.0,87662.0,0.13357868]
[1769391086778,0.01140549,87677.0,87662.0,0.13357868]
[1769391086966,0.01140536,87678.0,87662.0,0.13357868]
[1769391087192,0.0114051,87680.0,87662.0,0.13357868]
[1769391087393,0.03343732,87681.0,87664.0,0.13311064]
[1769391087394,0.04484229,87681.0,87664.0,0.13311064]
[1769391087741,0.0114051,87680.0,87664.0,0.13311064]
[1769391087966,0.04484229,87681.0,87664.0,0.13311064]
[1769391088205,0.03343732,87681.0,87664.0,0.13311064]
[1769391088405,0.01140328,87694.0,87672.0,0.13311064]
[1769391088552,0.04933518,87696.0,87670.0,0.01140641]
[1769391088923,0.04933518,87696.0,87662.0,0.00046804]
[1769391088924,0.0003191,87696.0,87678.0,1.16115835]
[1769391089138,0.0114038,87690.0,87679.0,0.13311064]
[1769391089320,0.00025758,87679.0,87663.0,0.13311064]
[1769391089658,0.01140471,87683.0,87663.0,0.13311064]
[1769391089878,0.01140458,87684.0,87663.0,0.13311064]
[1769391090092,0.04194678,87685.0,87663.0,0.13311064]
[1769391090093,0.01140549,87677.0,87663.0,0.13311064]
[1769391091267,0.01140536,87678.0,87663.0,0.13311064]
[1769391091673,0.01140523,87679.0,87663.0,0.13311064]
[1769391091885,0.04194678,87680.0,87663.0,0.13311064]
[1769391092085,0.05335188,87680.0,87663.0,0.13311064]
[1769391092286,0.05702296,87684.0,87663.0,0.13311064]
[1769391092565,0.0461115,87686.0,87663.0,0.13311064]
[1769391092863,0.01140445,87685.0,87664.0,1.16115835]
[1769391093060,0.01140445,87685.0,87665.0,0.13311064]
[1769391093364,0.01140458,87684.0,87665.0,0.13311064]
[1769391093509,0.01140497,87681.0,87665.0,0.13311064]
[1769391093921,0.01140523,87679.0,87665.0,0.13311064]
[1769391094132,0.01140497,87681.0,87665.0,0.13311064]
[1769391094338,0.01140484,87682.0,87665.0,0.13311064]
[1769391094761,0.01140497,87681.0,87665.0,0.13311064]
[1769391094962,0.0114051,87680.0,87665.0,0.13297708]
[1769391095201,0.01140523,87679.0,87665.0,0.13297708]
[1769391095461,0.01140536,87678.0,87665.0,0.13297708]
[1769391095895,0.0114051,87680.0,87665.0,0.13297708]
[1769391096303,0.01140523,87679.0,87665.0,0.13297708]
[1769391096474,0.01140536,87678.0,87665.0,0.13297708]
[1769391096672,0.01140523,87679.0,87665.0,0.13297708]
[1769391097003,0.05702394,87683.0,87665.0,0.13297708]
[1769391097210,0.0461115,87686.0,87666.0,0.1293029]
[1769391097554,0.05751582,87686.0,87666.0,0.1293029]
[1769391098026,0.01140458,87684.0,87666.0,0.1293029]
[1769391098245,0.01140497,87681.0,87666.0,0.1293029]
[1769391098596,0.01140484,87682.0,87666.0,0.1293029]
[1769391098997,0.01140497,87681.0,87666.0,0.1293029]
[1769391099205,0.01140497,87681.0,87662.0,1.16541865]
[1769391099206,0.01140549,87677.0,87662.0,0.00046804]
[1769391099407,0.01140536,87678.0,87662.0,0.00046804]
[1769391099652,0.01140536,87678.0,87662.0,0.12977094]
[1769391100182,0.05643773,87681.0,87662.0,0.12977094]
[1769391100383,0.0114051,87680.0,87663.0,0.1293029]
[1769391100520,0.01140536,87678.0,87663.0,0.12922543]
[1769391101068,0.01140549,87677.0,87663.0,0.12922543]
[1769391101268,0.0114051,87680.0,87663.0,1.29417604]
[1769391101486,0.01140523,87679.0,87663.0,0.12922543]
[1769391101623,0.04107713,87684.0,87663.0,0.12922543]
[1769391101624,0.01140471,87683.0,87663.0,0.12922543]
[1769391101835,0.01140484,87682.0,87663.0,0.12922543]
[1769391102054,0.01140458,87684.0,87663.0,0.12922543]
[1769391102474,0.01140458,87684.0,87663.0,0.12825878]
[1769391102475,0.01140471,87683.0,87663.0,0.12825878]
[1769391102669,0.10950407,87685.0,87663.0,0.12825878]
[1769391102670,0.04107713,87685.0,87663.0,0.12825878]
[1769391102880,0.04107713,87685.0,87665.0,0.14013603]
[1769391103503,0.05248158,87685.0,87665.0,0.14013603]
[1769391103821,0.01140471,87683.0,87665.0,0.14013603]
[1769391104155,0.01140367,87691.0,87667.0,0.14013603]
[1769391104367,0.0114038,87690.0,87670.0,1.16495061]